[Event "Titled Tuesday Blitz June 14 Early 2022"]
[White "Aditya Mittal"]
[Black "Przybylski, Wojciech"]
[WhiteFideId "35042025"]
[BlackFideId "1117599"]
[WhiteElo "2303"]
[BlackElo "2133"]
[Result "0-1"]
[Round "01"]
[TimeControl "180+1"]
[Date "2022.06.14"]
[WhiteClock "0:00:06"]
[BlackClock "0:00:17"]

1. d4 {[%clk 0:03:00]}  Nf6 {[%clk 0:02:59]} 2. Nf3 {[%clk 0:03:01]}  e6 {[%clk 0:02:58]} 3. g3 {[%clk 0:03:01]}  d5 {[%clk 0:02:57]} 4. Bg2 {[%clk 0:03:01]}  Be7 {[%clk 0:02:58]} 5. O-O {[%clk 0:03:02]}  O-O {[%clk 0:02:57]} 6. b3 {[%clk 0:03:02]}  a5 {[%clk 0:02:57]} 7. a3 {[%clk 0:02:59]}  c5 {[%clk 0:02:56]} 8. dxc5 {[%clk 0:02:58]}  Na6 {[%clk 0:02:55]} 9. b4 {[%clk 0:02:55]}  b6 {[%clk 0:02:54]} 10. cxb6 {[%clk 0:02:39]}  axb4 {[%clk 0:02:52]} 11. axb4 {[%clk 0:02:39]}  Bxb4 {[%clk 0:02:52]} 12. Bb2 {[%clk 0:02:33]}  Qxb6 {[%clk 0:02:48]} 13. Nbd2 {[%clk 0:02:22]}  Bb7 {[%clk 0:02:47]} 14. Nb3 {[%clk 0:02:16]}  Ne4 {[%clk 0:02:38]} 15. Bd4 {[%clk 0:02:00]}  Qc7 {[%clk 0:02:37]} 16. Be5 {[%clk 0:01:58]}  Qb6 {[%clk 0:02:35]} 17. Rb1 {[%clk 0:01:55]}  Nc3 {[%clk 0:02:29]} 18. Bxc3 {[%clk 0:01:41]}  Bxc3 {[%clk 0:02:30]} 19. Qd3 {[%clk 0:01:41]}  Qc7 {[%clk 0:02:22]} 20. Nbd4 {[%clk 0:01:33]}  Bxd4 {[%clk 0:01:43]} 21. Nxd4 {[%clk 0:01:28]}  Nc5 {[%clk 0:01:43]} 22. Qe3 {[%clk 0:01:20]}  Ba6 {[%clk 0:01:35]} 23. Rfc1 {[%clk 0:01:12]}  Bc4 {[%clk 0:01:34]} 24. Nb5 {[%clk 0:00:56]}  Qe7 {[%clk 0:01:32]} 25. Na3 {[%clk 0:00:50]}  Ra4 {[%clk 0:01:22]} 26. Nxc4 {[%clk 0:00:50]}  Rxc4 {[%clk 0:01:22]} 27. Qa3 {[%clk 0:00:49]}  g6 {[%clk 0:01:16]} 28. e3 {[%clk 0:00:49]}  Rc8 {[%clk 0:01:15]} 29. Rb4 {[%clk 0:00:38]}  Rxb4 {[%clk 0:00:54]} 30. Qxb4 {[%clk 0:00:39]}  Qf6 {[%clk 0:00:51]} 31. Rb1 {[%clk 0:00:37]}  Nd7 {[%clk 0:00:46]} 32. Qb7 {[%clk 0:00:31]}  Rb8 {[%clk 0:00:45]} 33. Qxb8+ {[%clk 0:00:26]}  Nxb8 {[%clk 0:00:44]} 34. Rxb8+ {[%clk 0:00:27]}  Kg7 {[%clk 0:00:45]} 35. h4 {[%clk 0:00:27]}  Qc3 {[%clk 0:00:44]} 36. Rb7 {[%clk 0:00:22]}  Qxc2 {[%clk 0:00:43]} 37. Bh3 {[%clk 0:00:22]}  Kf6 {[%clk 0:00:40]} 38. Bf1 {[%clk 0:00:22]}  h6 {[%clk 0:00:37]} 39. Bg2 {[%clk 0:00:22]}  g5 {[%clk 0:00:37]} 40. hxg5+ {[%clk 0:00:21]}  hxg5 {[%clk 0:00:37]} 41. Bf3 {[%clk 0:00:20]}  Qc4 {[%clk 0:00:32]} 42. Bh5 {[%clk 0:00:18]}  g4 {[%clk 0:00:31]} 43. Rxf7+ {[%clk 0:00:13]}  Kg5 {[%clk 0:00:31]} 44. Bxg4 {[%clk 0:00:10]}  Qc1+ {[%clk 0:00:28]} 45. Kg2 {[%clk 0:00:11]}  Kxg4 {[%clk 0:00:28]} 46. Rf6 {[%clk 0:00:10]}  e5 {[%clk 0:00:27]} 47. Rd6 {[%clk 0:00:09]}  Qc4 {[%clk 0:00:26]} 48. f3+ {[%clk 0:00:09]}  Kg5 {[%clk 0:00:25]} 49. f4+ {[%clk 0:00:06]}  Kf5 {[%clk 0:00:24]} 50. g4+ {[%clk 0:00:06]}  Ke4 {[%clk 0:00:20]} 51. Re6 {[%clk 0:00:05]}  Qe2+ {[%clk 0:00:20]} 52. Kg3 {[%clk 0:00:05]}  Qxe3+ {[%clk 0:00:20]} 53. Kh4 {[%clk 0:00:06]}  Qxf4 {[%clk 0:00:20]} 54. Kh5 {[%clk 0:00:05]}  Qf7+ {[%clk 0:00:19]} 55. Rg6 {[%clk 0:00:05]}  d4 {[%clk 0:00:19]} 56. g5 {[%clk 0:00:06]}  Kf5 {[%clk 0:00:17]} 0-1


[Site "https://www.chess.com"]

[Event "Titled Tuesday Blitz June 14 Early 2022"]
[White "Chylewski, Patryk"]
[Black "Paravyan, David"]
[WhiteFideId "1186191"]
[BlackFideId "4194985"]
[WhiteElo "2077"]
[BlackElo "2569"]
[Result "0-1"]
[Round "01"]
[TimeControl "180+1"]
[Date "2022.06.14"]
[WhiteClock "0:00:01"]
[BlackClock "0:00:13"]

1. d4 {[%clk 0:02:56]}  Nf6 {[%clk 0:02:59]} 2. c4 {[%clk 0:02:56]}  g6 {[%clk 0:03:00]} 3. Nc3 {[%clk 0:02:55]}  d5 {[%clk 0:03:00]} 4. cxd5 {[%clk 0:02:47]}  Nxd5 {[%clk 0:03:01]} 5. e4 {[%clk 0:02:48]}  Nxc3 {[%clk 0:03:00]} 6. bxc3 {[%clk 0:02:48]}  Bg7 {[%clk 0:02:59]} 7. Nf3 {[%clk 0:02:49]}  c5 {[%clk 0:02:58]} 8. Rb1 {[%clk 0:02:48]}  O-O {[%clk 0:02:57]} 9. Be2 {[%clk 0:02:48]}  cxd4 {[%clk 0:02:53]} 10. cxd4 {[%clk 0:02:48]}  Qa5+ {[%clk 0:02:54]} 11. Qd2 {[%clk 0:02:48]}  Qxd2+ {[%clk 0:02:53]} 12. Bxd2 {[%clk 0:02:49]}  b6 {[%clk 0:02:54]} 13. Be3 {[%clk 0:02:46]}  Bb7 {[%clk 0:02:53]} 14. Nd2 {[%clk 0:02:43]}  Rc8 {[%clk 0:02:49]} 15. O-O {[%clk 0:02:38]}  Nc6 {[%clk 0:02:43]} 16. d5 {[%clk 0:02:28]}  Nd4 {[%clk 0:02:42]} 17. Bxd4 {[%clk 0:02:21]}  Bxd4 {[%clk 0:02:43]} 18. Rfc1 {[%clk 0:02:21]}  Kf8 {[%clk 0:02:19]} 19. Kf1 {[%clk 0:02:05]}  Ke8 {[%clk 0:02:02]} 20. Bb5+ {[%clk 0:02:05]}  Kd8 {[%clk 0:02:02]} 21. Ke2 {[%clk 0:02:00]}  a6 {[%clk 0:01:53]} 22. Bd3 {[%clk 0:01:54]}  f6 {[%clk 0:01:52]} 23. Nb3 {[%clk 0:01:44]}  Rxc1 {[%clk 0:01:49]} 24. Rxc1 {[%clk 0:01:43]}  Be5 {[%clk 0:01:50]} 25. g3 {[%clk 0:01:39]}  g5 {[%clk 0:01:49]} 26. f3 {[%clk 0:01:32]}  Kd7 {[%clk 0:01:43]} 27. Ke3 {[%clk 0:01:31]}  Bd6 {[%clk 0:01:38]} 28. Bf1 {[%clk 0:01:20]}  Ke8 {[%clk 0:01:08]} 29. Bh3 {[%clk 0:01:18]}  h5 {[%clk 0:01:08]} 30. Bf5 {[%clk 0:01:12]}  Kf7 {[%clk 0:01:08]} 31. Rc2 {[%clk 0:00:40]}  Rh8 {[%clk 0:01:03]} 32. Nc1 {[%clk 0:00:38]}  h4 {[%clk 0:01:00]} 33. g4 {[%clk 0:00:33]}  h3 {[%clk 0:00:55]} 34. Nd3 {[%clk 0:00:31]}  a5 {[%clk 0:00:55]} 35. f4 {[%clk 0:00:23]}  Ba6 {[%clk 0:00:54]} 36. fxg5 {[%clk 0:00:17]}  fxg5 {[%clk 0:00:55]} 37. Rf2 {[%clk 0:00:13]}  Bxd3 {[%clk 0:00:45]} 38. Kxd3 {[%clk 0:00:13]}  Bf4 {[%clk 0:00:45]} 39. Rc2 {[%clk 0:00:12]}  b5 {[%clk 0:00:43]} 40. Kd4 {[%clk 0:00:12]}  a4 {[%clk 0:00:31]} 41. e5 {[%clk 0:00:12]}  b4 {[%clk 0:00:31]} 42. Be6+ {[%clk 0:00:12]}  Kg6 {[%clk 0:00:32]} 43. Bf5+ {[%clk 0:00:11]}  Kf7 {[%clk 0:00:29]} 44. Be6+ {[%clk 0:00:11]}  Kg7 {[%clk 0:00:23]} 45. Ke4 {[%clk 0:00:09]}  b3 {[%clk 0:00:22]} 46. axb3 {[%clk 0:00:09]}  axb3 {[%clk 0:00:23]} 47. Rb2 {[%clk 0:00:10]}  Rb8 {[%clk 0:00:24]} 48. d6 {[%clk 0:00:10]}  Rb4+ {[%clk 0:00:22]} 49. Kf3 {[%clk 0:00:06]}  Bxe5 {[%clk 0:00:22]} 50. Rxb3 {[%clk 0:00:03]}  Rf4+ {[%clk 0:00:17]} 51. Ke2 {[%clk 0:00:03]}  Bxd6 {[%clk 0:00:16]} 52. Bf5 {[%clk 0:00:03]}  e6 {[%clk 0:00:16]} 53. Bxe6 {[%clk 0:00:02]}  Bc5 {[%clk 0:00:16]} 54. Ke1 {[%clk 0:00:01]}  Re4+ {[%clk 0:00:16]} 55. Kf1 {[%clk 0:00:02]}  Rxe6 {[%clk 0:00:16]} 56. Rxh3 {[%clk 0:00:02]}  Rf6+ {[%clk 0:00:14]} 57. Kg2 {[%clk 0:00:02]}  Rf2+ {[%clk 0:00:14]} 58. Kh1 {[%clk 0:00:02]}  Bd6 {[%clk 0:00:14]} 59. Rd3 {[%clk 0:00:02]}  Rxh2+ {[%clk 0:00:13]} 60. Kg1 {[%clk 0:00:02]}  Bf4 {[%clk 0:00:13]} 61. Rd4 {[%clk 0:00:01]}  Rh4 {[%clk 0:00:13]} 62. Re4 {[%clk 0:00:01]}  Rxg4+ {[%clk 0:00:13]} 0-1


[Site "https://www.chess.com"]

[Event "Titled Tuesday Blitz June 14 Early 2022"]
[White "Durarbayli, Vasif"]
[Black "Gracia Alvarez, Gerardo Antonio"]
[WhiteFideId "13402935"]
[BlackFideId "5109124"]
[WhiteElo "2528"]
[BlackElo "2139"]
[Result "1-0"]
[Round "01"]
[TimeControl "180+1"]
[Date "2022.06.14"]
[WhiteClock "0:00:20"]
[BlackClock "0:00:02"]

1. e4 {[%clk 0:03:00]}  c5 {[%clk 0:03:00]} 2. Nf3 {[%clk 0:03:00]}  Nc6 {[%clk 0:03:00]} 3. Bb5 {[%clk 0:03:00]}  d6 {[%clk 0:02:59]} 4. O-O {[%clk 0:02:59]}  Bd7 {[%clk 0:02:59]} 5. Re1 {[%clk 0:02:59]}  Nf6 {[%clk 0:02:59]} 6. c3 {[%clk 0:02:59]}  a6 {[%clk 0:02:59]} 7. Bf1 {[%clk 0:02:58]}  Bg4 {[%clk 0:02:58]} 8. d4 {[%clk 0:02:59]}  cxd4 {[%clk 0:02:55]} 9. cxd4 {[%clk 0:03:00]}  e5 {[%clk 0:02:55]} 10. d5 {[%clk 0:03:00]}  Nd4 {[%clk 0:02:54]} 11. Be3 {[%clk 0:02:58]}  Nxf3+ {[%clk 0:02:51]} 12. gxf3 {[%clk 0:02:59]}  Bd7 {[%clk 0:02:51]} 13. a4 {[%clk 0:02:48]}  Be7 {[%clk 0:02:42]} 14. Nd2 {[%clk 0:02:47]}  b5 {[%clk 0:02:34]} 15. axb5 {[%clk 0:02:46]}  axb5 {[%clk 0:02:35]} 16. Rxa8 {[%clk 0:02:39]}  Qxa8 {[%clk 0:02:36]} 17. f4 {[%clk 0:02:40]}  O-O {[%clk 0:01:51]} 18. fxe5 {[%clk 0:02:15]}  dxe5 {[%clk 0:01:52]} 19. Qa1 {[%clk 0:02:15]}  Ng4 {[%clk 0:01:47]} 20. Bb6 {[%clk 0:01:56]}  Qb7 {[%clk 0:01:44]} 21. Qa7 {[%clk 0:01:55]}  Rb8 {[%clk 0:01:28]} 22. Qxb7 {[%clk 0:01:52]}  Rxb7 {[%clk 0:01:29]} 23. Ba5 {[%clk 0:01:42]}  Bc5 {[%clk 0:01:28]} 24. Re2 {[%clk 0:01:42]}  b4 {[%clk 0:01:10]} 25. Nb3 {[%clk 0:01:40]}  Ba7 {[%clk 0:01:06]} 26. Rc2 {[%clk 0:01:26]}  f5 {[%clk 0:00:33]} 27. Ba6 {[%clk 0:00:52]}  Rb8 {[%clk 0:00:30]} 28. Rc7 {[%clk 0:00:44]}  Bxf2+ {[%clk 0:00:29]} 29. Kg2 {[%clk 0:00:42]}  Ba4 {[%clk 0:00:23]} 30. h3 {[%clk 0:00:43]}  Bxb3 {[%clk 0:00:22]} 31. hxg4 {[%clk 0:00:43]}  Bd4 {[%clk 0:00:19]} 32. gxf5 {[%clk 0:00:39]}  Bxb2 {[%clk 0:00:19]} 33. Bc8 {[%clk 0:00:36]}  Ba4 {[%clk 0:00:16]} 34. d6 {[%clk 0:00:35]}  b3 {[%clk 0:00:09]} 35. Be6+ {[%clk 0:00:27]}  Kh8 {[%clk 0:00:08]} 36. d7 {[%clk 0:00:23]}  Bxd7 {[%clk 0:00:04]} 37. Rxd7 {[%clk 0:00:24]}  h6 {[%clk 0:00:02]} 38. Bc7 {[%clk 0:00:20]} 1-0


[Site "https://www.chess.com"]

[Event "Titled Tuesday Blitz June 14 Early 2022"]
[White "Ezat, Mohamed"]
[Black "Sadhwani, Raunak"]
[WhiteFideId "10600906"]
[BlackFideId "35093487"]
[WhiteElo "2386"]
[BlackElo "2616"]
[Result "0-1"]
[Round "01"]
[TimeControl "180+1"]
[Date "2022.06.14"]
[WhiteClock "0:00:10"]
[BlackClock "0:00:42"]

1. d4 {[%clk 0:02:58]}  Nf6 {[%clk 0:02:48]} 2. c4 {[%clk 0:02:56]}  g6 {[%clk 0:02:44]} 3. Nc3 {[%clk 0:02:55]}  Bg7 {[%clk 0:02:23]} 4. e4 {[%clk 0:02:52]}  d6 {[%clk 0:02:22]} 5. Be2 {[%clk 0:02:52]}  O-O {[%clk 0:02:17]} 6. Bg5 {[%clk 0:02:40]}  Nc6 {[%clk 0:02:08]} 7. d5 {[%clk 0:02:38]}  Ne5 {[%clk 0:02:07]} 8. Nf3 {[%clk 0:02:37]}  Nxf3+ {[%clk 0:02:06]} 9. Bxf3 {[%clk 0:02:36]}  h6 {[%clk 0:02:07]} 10. Bh4 {[%clk 0:02:30]}  e5 {[%clk 0:02:02]} 11. O-O {[%clk 0:02:16]}  a5 {[%clk 0:02:01]} 12. Rc1 {[%clk 0:02:14]}  h5 {[%clk 0:02:01]} 13. h3 {[%clk 0:02:12]}  Bh6 {[%clk 0:02:01]} 14. Nb5 {[%clk 0:01:45]}  g5 {[%clk 0:01:50]} 15. Bg3 {[%clk 0:01:34]}  g4 {[%clk 0:01:39]} 16. hxg4 {[%clk 0:01:27]}  hxg4 {[%clk 0:01:38]} 17. Be2 {[%clk 0:01:24]}  Nxe4 {[%clk 0:01:38]} 18. Qd3 {[%clk 0:01:00]}  Bxc1 {[%clk 0:01:30]} 19. Rxc1 {[%clk 0:00:52]}  f5 {[%clk 0:01:29]} 20. c5 {[%clk 0:00:43]}  Rf7 {[%clk 0:01:24]} 21. cxd6 {[%clk 0:00:40]}  cxd6 {[%clk 0:01:25]} 22. Qe3 {[%clk 0:00:38]}  Bd7 {[%clk 0:01:11]} 23. Nc7 {[%clk 0:00:31]}  Rc8 {[%clk 0:01:11]} 24. Ne6 {[%clk 0:00:30]}  Rxc1+ {[%clk 0:01:11]} 25. Qxc1 {[%clk 0:00:30]}  Qf6 {[%clk 0:01:12]} 26. Bc4 {[%clk 0:00:23]}  b5 {[%clk 0:01:11]} 27. Bb3 {[%clk 0:00:23]}  a4 {[%clk 0:01:10]} 28. Bc2 {[%clk 0:00:23]}  Nxg3 {[%clk 0:01:07]} 29. fxg3 {[%clk 0:00:23]}  Bxe6 {[%clk 0:01:07]} 30. dxe6 {[%clk 0:00:23]}  Qxe6 {[%clk 0:01:08]} 31. Bd3 {[%clk 0:00:23]}  Kg7 {[%clk 0:00:56]} 32. Bxb5 {[%clk 0:00:17]}  Qh6 {[%clk 0:00:56]} 33. Qc3 {[%clk 0:00:14]}  f4 {[%clk 0:00:49]} 34. Bc4 {[%clk 0:00:11]}  Rc7 {[%clk 0:00:43]} 35. b3 {[%clk 0:00:10]}  axb3 {[%clk 0:00:41]} 36. axb3 {[%clk 0:00:11]}  fxg3 {[%clk 0:00:42]} 37. Qxg3 {[%clk 0:00:11]}  Qc1+ {[%clk 0:00:42]} 38. Kh2 {[%clk 0:00:10]}  Qf4 {[%clk 0:00:42]} 0-1


[Site "https://www.chess.com"]

[Event "Titled Tuesday Blitz June 14 Early 2022"]
[White "Grischuk, Alexander"]
[Black "Priyanka Nutakki"]
[WhiteFideId "4126025"]
[BlackFideId "25049615"]
[WhiteElo "2762"]
[BlackElo "1912"]
[Result "1-0"]
[Round "01"]
[TimeControl "180+1"]
[Date "2022.06.14"]
[WhiteClock "0:00:33"]
[BlackClock "0:00:05"]

1. d4 {[%clk 0:03:00]}  d5 {[%clk 0:02:59]} 2. Nf3 {[%clk 0:03:00]}  Nf6 {[%clk 0:02:59]} 3. Bf4 {[%clk 0:02:59]}  e6 {[%clk 0:02:58]} 4. Nbd2 {[%clk 0:02:58]}  Bd6 {[%clk 0:02:59]} 5. Bg5 {[%clk 0:02:58]}  Nbd7 {[%clk 0:02:42]} 6. e4 {[%clk 0:02:58]}  dxe4 {[%clk 0:02:43]} 7. Nxe4 {[%clk 0:02:58]}  Be7 {[%clk 0:02:43]} 8. Nxf6+ {[%clk 0:02:57]}  Nxf6 {[%clk 0:02:44]} 9. Bd3 {[%clk 0:02:52]}  h6 {[%clk 0:02:43]} 10. Bh4 {[%clk 0:02:47]}  c5 {[%clk 0:02:43]} 11. Qe2 {[%clk 0:02:45]}  Qa5+ {[%clk 0:02:14]} 12. c3 {[%clk 0:02:45]}  Bd7 {[%clk 0:02:13]} 13. dxc5 {[%clk 0:02:39]}  Qxc5 {[%clk 0:02:02]} 14. Ne5 {[%clk 0:02:38]}  Bc6 {[%clk 0:01:38]} 15. Nxc6 {[%clk 0:02:38]}  bxc6 {[%clk 0:01:39]} 16. O-O {[%clk 0:02:38]}  O-O {[%clk 0:01:35]} 17. Rad1 {[%clk 0:02:36]}  Rfd8 {[%clk 0:01:33]} 18. Bc2 {[%clk 0:02:26]}  Rd5 {[%clk 0:01:28]} 19. Bb3 {[%clk 0:02:25]}  Rxd1 {[%clk 0:01:19]} 20. Rxd1 {[%clk 0:02:26]}  Rd8 {[%clk 0:01:16]} 21. Rxd8+ {[%clk 0:02:25]}  Bxd8 {[%clk 0:01:17]} 22. Bg3 {[%clk 0:02:20]}  Nd5 {[%clk 0:01:12]} 23. Qa6 {[%clk 0:02:05]}  Bb6 {[%clk 0:01:02]} 24. Bc2 {[%clk 0:01:54]}  Ne7 {[%clk 0:00:52]} 25. Qe2 {[%clk 0:01:49]}  Nf5 {[%clk 0:00:46]} 26. Be5 {[%clk 0:01:43]}  Qd5 {[%clk 0:00:43]} 27. Bb3 {[%clk 0:01:38]}  Qc5 {[%clk 0:00:35]} 28. g3 {[%clk 0:01:36]}  a5 {[%clk 0:00:25]} 29. Bf4 {[%clk 0:01:27]}  Qe7 {[%clk 0:00:16]} 30. Bc2 {[%clk 0:01:19]}  Qc5 {[%clk 0:00:14]} 31. Be4 {[%clk 0:01:16]}  a4 {[%clk 0:00:07]} 32. a3 {[%clk 0:01:16]}  Ba5 {[%clk 0:00:06]} 33. Qd2 {[%clk 0:01:10]}  Bb6 {[%clk 0:00:06]} 34. Kg2 {[%clk 0:01:10]}  g5 {[%clk 0:00:06]} 35. Bb8 {[%clk 0:01:07]}  Kg7 {[%clk 0:00:06]} 36. Qe2 {[%clk 0:01:04]}  Ba7 {[%clk 0:00:05]} 37. Bxa7 {[%clk 0:01:00]}  Qxa7 {[%clk 0:00:06]} 38. Bxc6 {[%clk 0:01:00]}  Qc5 {[%clk 0:00:05]} 39. Bxa4 {[%clk 0:00:55]}  Kf6 {[%clk 0:00:02]} 40. Bc2 {[%clk 0:00:55]}  Qd5+ {[%clk 0:00:02]} 41. Be4 {[%clk 0:00:54]}  Qc5 {[%clk 0:00:03]} 42. Bxf5 {[%clk 0:00:53]}  exf5 {[%clk 0:00:04]} 43. Qd3 {[%clk 0:00:52]}  Qc6+ {[%clk 0:00:04]} 44. Kg1 {[%clk 0:00:52]}  h5 {[%clk 0:00:04]} 45. b4 {[%clk 0:00:50]}  h4 {[%clk 0:00:04]} 46. gxh4 {[%clk 0:00:49]}  gxh4 {[%clk 0:00:05]} 47. h3 {[%clk 0:00:46]}  Kg5 {[%clk 0:00:04]} 48. Qe3+ {[%clk 0:00:43]}  Kh5 {[%clk 0:00:04]} 49. Qf4 {[%clk 0:00:35]}  Qd5 {[%clk 0:00:04]} 50. c4 {[%clk 0:00:33]}  Qd1+ {[%clk 0:00:05]} 51. Kg2 {[%clk 0:00:33]}  Qc2 {[%clk 0:00:05]} 52. c5 {[%clk 0:00:33]}  Qd3 {[%clk 0:00:05]} 53. Qf3+ {[%clk 0:00:33]} 1-0


[Site "https://www.chess.com"]

[Event "Titled Tuesday Blitz June 14 Early 2022"]
[White "Ingebretsen, Jens E"]
[Black "Matlakov, Maxim"]
[WhiteFideId "1522965"]
[BlackFideId "4168003"]
[WhiteElo "2036"]
[BlackElo "2669"]
[Result "0-1"]
[Round "01"]
[TimeControl "180+1"]
[Date "2022.06.14"]
[WhiteClock "0:00:17"]
[BlackClock "0:01:33"]

1. c4 {[%clk 0:02:54]}  c5 {[%clk 0:02:58]} 2. Nf3 {[%clk 0:02:54]}  Nf6 {[%clk 0:02:58]} 3. Nc3 {[%clk 0:02:55]}  e6 {[%clk 0:02:57]} 4. d4 {[%clk 0:02:54]}  cxd4 {[%clk 0:02:57]} 5. Nxd4 {[%clk 0:02:55]}  d5 {[%clk 0:02:57]} 6. cxd5 {[%clk 0:02:45]}  Nxd5 {[%clk 0:02:56]} 7. Bd2 {[%clk 0:02:31]}  Nf6 {[%clk 0:02:54]} 8. Bg5 {[%clk 0:02:27]}  Be7 {[%clk 0:02:51]} 9. e3 {[%clk 0:02:26]}  h6 {[%clk 0:02:50]} 10. Bh4 {[%clk 0:02:26]}  O-O {[%clk 0:02:45]} 11. Be2 {[%clk 0:02:25]}  Qb6 {[%clk 0:02:37]} 12. Qb3 {[%clk 0:02:18]}  Qxb3 {[%clk 0:02:33]} 13. axb3 {[%clk 0:02:02]}  Bd7 {[%clk 0:02:10]} 14. Bf3 {[%clk 0:01:45]}  Nc6 {[%clk 0:02:10]} 15. Nxc6 {[%clk 0:01:40]}  Bxc6 {[%clk 0:02:10]} 16. Bxc6 {[%clk 0:01:40]}  bxc6 {[%clk 0:02:11]} 17. Ra6 {[%clk 0:01:23]}  Rfb8 {[%clk 0:02:00]} 18. Rxc6 {[%clk 0:01:04]}  Rxb3 {[%clk 0:02:00]} 19. O-O {[%clk 0:00:54]}  Rxb2 {[%clk 0:01:56]} 20. Rc1 {[%clk 0:00:23]}  a5 {[%clk 0:01:51]} 21. Na4 {[%clk 0:00:22]}  Rb4 {[%clk 0:01:50]} 22. Nb6 {[%clk 0:00:22]}  Rd8 {[%clk 0:01:34]} 23. h3 {[%clk 0:00:17]}  Rxh4 {[%clk 0:01:33]} 0-1


[Site "https://www.chess.com"]

[Event "Titled Tuesday Blitz June 14 Early 2022"]
[White "Jobava, Baadur"]
[Black "Richter, Nils"]
[WhiteFideId "13601520"]
[BlackFideId "12990809"]
[WhiteElo "2617"]
[BlackElo "2311"]
[Result "1-0"]
[Round "01"]
[TimeControl "180+1"]
[Date "2022.06.14"]
[WhiteClock "0:02:36"]
[BlackClock "0:00:54"]

1. b3 {[%clk 0:02:54]}  e5 {[%clk 0:02:57]} 2. Bb2 {[%clk 0:02:41]}  Nc6 {[%clk 0:02:57]} 3. Nf3 {[%clk 0:02:41]}  e4 {[%clk 0:02:55]} 4. Nd4 {[%clk 0:02:41]}  Nf6 {[%clk 0:02:53]} 5. e3 {[%clk 0:02:42]}  Bc5 {[%clk 0:02:43]} 6. Nf5 {[%clk 0:02:42]}  O-O {[%clk 0:02:39]} 7. g4 {[%clk 0:02:42]}  d6 {[%clk 0:02:19]} 8. g5 {[%clk 0:02:41]}  Bxf5 {[%clk 0:02:18]} 9. gxf6 {[%clk 0:02:41]}  g6 {[%clk 0:02:12]} 10. h4 {[%clk 0:02:40]}  Ne5 {[%clk 0:02:06]} 11. Bxe5 {[%clk 0:02:40]}  dxe5 {[%clk 0:02:06]} 12. Bh3 {[%clk 0:02:41]}  Qxf6 {[%clk 0:02:04]} 13. Bxf5 {[%clk 0:02:41]}  gxf5 {[%clk 0:01:59]} 14. Nc3 {[%clk 0:02:38]}  c6 {[%clk 0:01:56]} 15. Rg1+ {[%clk 0:02:29]}  Kh8 {[%clk 0:01:56]} 16. Qh5 {[%clk 0:02:30]}  Rg8 {[%clk 0:01:54]} 17. O-O-O {[%clk 0:02:30]}  Rxg1 {[%clk 0:01:46]} 18. Rxg1 {[%clk 0:02:31]}  Rg8 {[%clk 0:01:47]} 19. Rxg8+ {[%clk 0:02:29]}  Kxg8 {[%clk 0:01:48]} 20. Ne2 {[%clk 0:02:30]}  Qg6 {[%clk 0:01:43]} 21. Ng3 {[%clk 0:02:30]}  Qxh5 {[%clk 0:01:40]} 22. Nxh5 {[%clk 0:02:31]}  Be7 {[%clk 0:01:40]} 23. Ng3 {[%clk 0:02:31]}  Bxh4 {[%clk 0:01:39]} 24. Nxf5 {[%clk 0:02:31]}  Bxf2 {[%clk 0:01:38]} 25. Kd1 {[%clk 0:02:32]}  h5 {[%clk 0:01:00]} 26. Ke2 {[%clk 0:02:32]}  Bg1 {[%clk 0:01:01]} 27. Kf1 {[%clk 0:02:32]}  Bh2 {[%clk 0:01:00]} 28. Kg2 {[%clk 0:02:33]}  Bf4 {[%clk 0:01:00]} 29. exf4 {[%clk 0:02:33]}  exf4 {[%clk 0:01:01]} 30. Nd6 {[%clk 0:02:34]}  f5 {[%clk 0:00:59]} 31. Nxf5 {[%clk 0:02:34]}  Kf7 {[%clk 0:00:57]} 32. Nd6+ {[%clk 0:02:34]}  Kg6 {[%clk 0:00:58]} 33. Nxe4 {[%clk 0:02:35]}  Kf5 {[%clk 0:00:57]} 34. Kf3 {[%clk 0:02:36]}  h4 {[%clk 0:00:54]} 35. Nf2 {[%clk 0:02:36]} 1-0


[Site "https://www.chess.com"]

[Event "Titled Tuesday Blitz June 14 Early 2022"]
[White "Manukian, Artak"]
[Black "Dubov, Daniil"]
[WhiteFideId "13301373"]
[BlackFideId "24126055"]
[WhiteElo "2549"]
[BlackElo "2791"]
[Result "0-1"]
[Round "01"]
[TimeControl "180+1"]
[Date "2022.06.14"]
[WhiteClock "0:00:18"]
[BlackClock "0:00:18"]

1. e4 {[%clk 0:02:59]}  e5 {[%clk 0:02:58]} 2. Nf3 {[%clk 0:02:58]}  Nc6 {[%clk 0:02:59]} 3. d4 {[%clk 0:02:59]}  exd4 {[%clk 0:02:59]} 4. Nxd4 {[%clk 0:03:00]}  Nf6 {[%clk 0:02:59]} 5. Nxc6 {[%clk 0:03:00]}  bxc6 {[%clk 0:02:59]} 6. e5 {[%clk 0:03:00]}  Qe7 {[%clk 0:02:59]} 7. Qe2 {[%clk 0:03:00]}  Nd5 {[%clk 0:02:59]} 8. c4 {[%clk 0:03:00]}  Nb6 {[%clk 0:02:58]} 9. b3 {[%clk 0:03:00]}  Qe6 {[%clk 0:02:55]} 10. Nc3 {[%clk 0:02:59]}  Bb4 {[%clk 0:02:54]} 11. Bb2 {[%clk 0:02:59]}  O-O {[%clk 0:02:53]} 12. O-O-O {[%clk 0:02:58]}  a5 {[%clk 0:02:52]} 13. a4 {[%clk 0:02:53]}  Rb8 {[%clk 0:02:41]} 14. f4 {[%clk 0:02:50]}  d5 {[%clk 0:02:38]} 15. exd6 {[%clk 0:02:47]}  cxd6 {[%clk 0:02:34]} 16. Qxe6 {[%clk 0:02:44]}  Bxe6 {[%clk 0:02:33]} 17. Bd3 {[%clk 0:02:22]}  d5 {[%clk 0:02:17]} 18. f5 {[%clk 0:02:22]}  dxc4 {[%clk 0:02:07]} 19. fxe6 {[%clk 0:02:22]}  cxd3 {[%clk 0:02:05]} 20. exf7+ {[%clk 0:02:22]}  Rxf7 {[%clk 0:02:05]} 21. Rxd3 {[%clk 0:02:23]}  Rf2 {[%clk 0:02:02]} 22. Rd2 {[%clk 0:02:17]}  Rxd2 {[%clk 0:01:57]} 23. Kxd2 {[%clk 0:02:18]}  Nd5 {[%clk 0:01:58]} 24. Re1 {[%clk 0:01:58]}  Bxc3+ {[%clk 0:01:48]} 25. Bxc3 {[%clk 0:01:58]}  Rxb3 {[%clk 0:01:49]} 26. Bxa5 {[%clk 0:01:58]}  Rb2+ {[%clk 0:01:44]} 27. Kd3 {[%clk 0:01:56]}  Rxg2 {[%clk 0:01:44]} 28. Ra1 {[%clk 0:01:38]}  Rxh2 {[%clk 0:01:38]} 29. Bd8 {[%clk 0:01:37]}  Kf7 {[%clk 0:01:28]} 30. a5 {[%clk 0:01:37]}  Ke8 {[%clk 0:01:26]} 31. Bg5 {[%clk 0:01:30]}  Nb4+ {[%clk 0:01:22]} 32. Kc4 {[%clk 0:01:27]}  Na6 {[%clk 0:01:21]} 33. Rb1 {[%clk 0:01:18]}  Rh5 {[%clk 0:01:18]} 34. Bd2 {[%clk 0:01:16]}  Rc5+ {[%clk 0:01:16]} 35. Kd3 {[%clk 0:01:13]}  Rd5+ {[%clk 0:01:16]} 36. Ke2 {[%clk 0:01:12]}  Rb5 {[%clk 0:01:09]} 37. Rg1 {[%clk 0:00:56]}  g6 {[%clk 0:01:09]} 38. Kd3 {[%clk 0:00:54]}  Nc5+ {[%clk 0:01:07]} 39. Kc4 {[%clk 0:00:52]}  Nb3 {[%clk 0:01:07]} 40. Re1+ {[%clk 0:00:41]}  Kd7 {[%clk 0:01:04]} 41. Rd1 {[%clk 0:00:34]}  Nxd2+ {[%clk 0:00:36]} 42. Rxd2+ {[%clk 0:00:35]}  Rd5 {[%clk 0:00:36]} 43. Ra2 {[%clk 0:00:30]}  Kc7 {[%clk 0:00:33]} 44. a6 {[%clk 0:00:27]}  Kb8 {[%clk 0:00:33]} 45. a7+ {[%clk 0:00:27]}  Ka8 {[%clk 0:00:33]} 46. Ra6 {[%clk 0:00:27]}  Rd7 {[%clk 0:00:20]} 47. Rxc6 {[%clk 0:00:24]}  Kxa7 {[%clk 0:00:20]} 48. Rf6 {[%clk 0:00:23]}  Kb7 {[%clk 0:00:20]} 49. Kc5 {[%clk 0:00:23]}  Kc7 {[%clk 0:00:20]} 50. Rc6+ {[%clk 0:00:23]}  Kd8 {[%clk 0:00:20]} 51. Rf6 {[%clk 0:00:23]}  Ke7 {[%clk 0:00:20]} 52. Rf2 {[%clk 0:00:24]}  h5 {[%clk 0:00:20]} 53. Rf4 {[%clk 0:00:22]}  Ke6 {[%clk 0:00:20]} 54. Rf8 {[%clk 0:00:22]}  h4 {[%clk 0:00:18]} 55. Kc4 {[%clk 0:00:20]}  g5 {[%clk 0:00:18]} 56. Kc3 {[%clk 0:00:19]}  Ke5 {[%clk 0:00:18]} 57. Kc2 {[%clk 0:00:18]}  h3 {[%clk 0:00:18]} 0-1


[Site "https://www.chess.com"]